bitfinex-derivatives/quotes_BTCF0:USTF0_20240829
["timestamp","ask_amount","ask_price","bid_price","bid_amount"]
[1724958861964,0.084403,59225.0,59221.0,0.084408]
[1724958862164,0.36105318,59228.0,59224.0,0.084404]
[1724958862371,0.0844,59227.0,59224.0,0.084404]
[1724958864870,0.37847153,59228.0,59217.0,0.00025318]
[1724958865069,0.37847153,59228.0,59217.0,1e-08]
[1724958865070,0.084412,59218.0,59217.0,1e-08]
[1724958865371,0.084415,59216.0,59205.0,0.3608]
[1724958865573,0.084428,59208.0,59205.0,0.3608]
[1724958865964,0.084428,59208.0,59197.0,0.3608]
[1724958866269,0.08468118,59208.0,59197.0,0.36105318]
[1724958866771,0.084428,59207.0,59197.0,0.36105318]
[1724958867467,0.084428,59207.0,59204.0,0.084432]
[1724958867671,0.084433,59204.0,59197.0,0.36105318]
[1724958867864,0.3608,59204.0,59197.0,0.36105318]
[1724958868066,0.3608,59204.0,59197.0,0.00025318]
[1724958868294,0.084441,59198.0,59197.0,0.00025318]
[1724958869373,0.445241,59198.0,59197.0,0.00025318]
[1724958869568,0.952001,59198.0,59197.0,0.00025318]
[1724958870072,0.445241,59198.0,59197.0,0.00025318]
[1724958870273,0.3608,59198.0,59197.0,0.00025318]
[1724958870466,0.37789886,59198.0,59197.0,0.00025318]
[1724958871571,0.00025318,59208.0,59207.0,0.084428]
[1724958871766,0.00025318,59208.0,59207.0,1.757136]
[1724958871973,0.3608,59220.0,59219.0,0.084411]
[1724958872376,0.37816655,59220.0,59219.0,0.084411]
[1724958873196,0.37816655,59220.0,59215.0,0.084416]
[1724958873476,0.37816655,59220.0,59214.0,0.00025318]
[1724958873477,0.46257555,59220.0,59216.0,0.084415]
[1724958873679,0.37,59217.0,59214.0,0.00025318]
[1724958873880,0.445216,59215.0,59214.0,0.00025318]
[1724958874177,0.445216,59215.0,59214.0,1e-08]
[1724958874571,1.551856,59215.0,59214.0,1e-08]
[1724958874969,0.084438,59201.0,59194.0,0.084445]
[1724958875169,0.3608,59200.0,59197.0,0.084442]
[1724958875674,0.37,59207.0,59193.0,0.3608]
[1724958875876,0.37,59207.0,59202.0,0.084434]
[1724958876574,0.37,59207.0,59199.0,0.36105318]
[1724958876770,0.3608,59203.0,59199.0,0.00025318]
[1724958879178,0.3608,59203.0,59200.0,0.084437]
[1724958879582,0.01716301,59207.0,59206.0,0.084429]
[1724958879785,0.3608,59216.0,59206.0,0.3608]
[1724958879973,0.084418,59215.0,59209.0,0.084425]
[1724958880166,0.01712312,59210.0,59206.0,0.3608]
[1724958880372,0.00025318,59210.0,59206.0,0.3608]
[1724958880699,0.00025318,59210.0,59199.0,0.36105318]
[1724958880700,0.084431,59205.0,59200.0,0.084437]
[1724958881182,0.084431,59205.0,59199.0,0.00025318]
[1724958881183,0.084432,59204.0,59199.0,0.00025318]
[1724958881367,0.00025318,59210.0,59201.0,0.3608]
[1724958881368,0.36105318,59210.0,59201.0,0.3608]
[1724958881571,0.36105318,59210.0,59205.0,0.08443]
[1724958881572,0.11159153,59210.0,59205.0,0.08443]
[1724958881976,0.37,59211.0,59205.0,0.08443]
[1724958882367,0.37,59211.0,59205.0,0.44523]
[1724958882572,0.37,59211.0,59205.0,0.08443]
[1724958883475,0.084424,59210.0,59205.0,0.08443]
[1724958883674,0.01730866,59212.0,59209.0,0.084425]
[1724958883881,0.3608,59213.0,59209.0,0.084425]
[1724958884282,0.3608,59213.0,59204.0,0.3608]
[1724958884784,0.084422,59211.0,59205.0,0.084429]
[1724958885481,0.084422,59211.0,59206.0,0.084429]
[1724958887479,0.37,59211.0,59205.0,0.3608]
[1724958887682,0.37,59211.0,59199.0,0.00025318]
[1724958887683,0.084437,59201.0,59199.0,0.00025318]
[1724958887885,0.084438,59200.0,59199.0,0.00025318]
[1724958888981,0.13628584,59200.0,59199.0,0.00025318]
[1724958889383,1.24304584,59200.0,59199.0,1e-08]
[1724958889983,1.32748384,59200.0,59199.0,1e-08]
[1724958890485,1.34473737,59200.0,59199.0,1e-08]
[1724958891576,1.26029937,59200.0,59199.0,1e-08]
[1724958892285,1.34473737,59200.0,59199.0,1e-08]
[1724958892497,1.34473737,59200.0,59175.0,0.084473]
[1724958892498,0.084442,59198.0,59175.0,0.084473]
[1724958892785,1.17586137,59200.0,59177.0,0.084471]
[1724958892786,0.7308,59182.0,59177.0,0.084471]
[1724958893584,0.7308,59182.0,59179.0,0.3608]
[1724958893585,0.37,59182.0,59179.0,0.3608]
[1724958893784,0.37,59182.0,59179.0,0.445268]
[1724958893983,0.0002534,59185.0,59179.0,0.3608]
[1724958894395,0.0002534,59185.0,59184.0,0.084461]
[1724958894599,0.017706,59185.0,59184.0,0.084461]
[1724958894785,0.0002534,59185.0,59184.0,0.445261]
[1724958894986,0.0002534,59185.0,59184.0,0.3608]
[1724958895710,0.0847124,59185.0,59184.0,0.3608]
[1724958896090,0.10203023,59185.0,59184.0,0.3608]
[1724958896795,0.084461,59184.0,59176.0,0.445271]
[1724958897001,0.084461,59184.0,59177.0,0.08447]
[1724958897296,0.37,59183.0,59176.0,0.3608]
[1724958898094,0.084471,59177.0,59176.0,0.3608]
[1724958898991,0.454471,59177.0,59176.0,0.3608]
[1724958899384,0.01757123,59185.0,59176.0,0.3608]
[1724958899385,0.37,59183.0,59176.0,0.3608]
[1724958899694,0.01757123,59185.0,59176.0,0.3608]
[1724958899898,0.37,59184.0,59176.0,0.3608]
[1724958900086,0.084464,59182.0,59176.0,0.445271]
[1724958900418,0.3094,59190.0,59176.0,0.445271]
[1724958900419,0.084435,59202.0,59181.0,0.3608]
[1724958900590,0.084441,59198.0,59192.0,0.084448]
[1724958900788,0.084441,59198.0,59182.0,0.3173]
[1724958900789,0.3608,59197.0,59187.0,0.3608]
[1724958901292,0.37,59200.0,59196.0,0.084444]
[1724958901497,0.0002534,59198.0,59196.0,0.084444]
[1724958901700,0.0002534,59198.0,59197.0,0.084442]
[1724958902291,1e-08,59198.0,59197.0,1.191202]
[1724958902689,1e-08,59198.0,59197.0,0.084442]
[1724958903700,1e-08,59198.0,59197.0,0.591202]
[1724958903894,1e-08,59198.0,59197.0,1.191202]
[1724958904206,1e-08,59198.0,59197.0,0.084442]
[1724958905096,1e-08,59198.0,59196.0,0.3608]
[1724958905696,1e-08,59198.0,59197.0,0.084442]
[1724958905890,1e-08,59198.0,59196.0,0.3608]
[1724958906099,0.084451,59191.0,59190.0,0.3608]
[1724958906402,0.084451,59191.0,59185.0,0.00092]
[1724958906403,0.084456,59187.0,59185.0,0.3608]
[1724958906593,0.37,59191.0,59185.0,0.3608]
[1724958906793,0.084454,59189.0,59185.0,0.3608]
[1724958907302,0.084455,59188.0,59185.0,0.3608]
[1724958907503,0.3842661,59191.0,59185.0,0.3608]
[1724958907891,0.0142661,59191.0,59190.0,0.3608]
[1724958908095,0.454445,59196.0,59190.0,0.3608]
[1724958908301,0.37,59196.0,59188.0,0.084455]
[1724958908497,0.37,59190.0,59185.0,0.3608]
[1724958908905,0.37,59190.0,59178.0,0.3608]
[1724958908906,0.084456,59187.0,59178.0,0.445269]
[1724958909094,0.084456,59187.0,59179.0,0.084468]
[1724958909492,0.3608,59188.0,59178.0,0.3608]
[1724958909704,0.3608,59188.0,59183.0,0.084462]
[1724958910006,0.3608,59188.0,59178.0,0.3608]
[1724958910409,1e-08,59198.0,59193.0,0.084447]
[1724958910713,0.08444101,59198.0,59194.0,0.3608]
[1724958911305,1e-08,59198.0,59194.0,0.3608]
[1724958911500,1e-08,59198.0,59196.0,0.084442]
[1724958911694,1e-08,59198.0,59194.0,0.3608]
[1724958911904,0.084445,59195.0,59194.0,0.3608]
[1724958912606,1e-08,59198.0,59194.0,0.3608]
[1724958912911,1e-08,59198.0,59197.0,0.084442]
[1724958914411,1e-08,59198.0,59197.0,1.191202]
[1724958914603,0.3608,59221.0,59198.0,0.50676]
[1724958914907,0.084411,59219.0,59215.0,0.3608]
[1724958915099,0.084411,59219.0,59213.0,0.084419]
[1724958915303,0.05183143,59220.0,59214.0,0.084418]
[1724958915496,0.084412,59218.0,59208.0,0.3608]
[1724958915803,0.084412,59218.0,59211.0,0.0002534]
[1724958916208,0.084412,59218.0,59215.0,0.3608]
[1724958916793,0.05183143,59220.0,59215.0,0.35396418]
[1724958916794,0.37,59216.0,59215.0,0.35396418]
[1724958917007,0.4218302,59216.0,59211.0,0.0002534]
[1724958917205,0.084421,59212.0,59211.0,0.0002534]
[1724958917594,0.591061,59212.0,59211.0,0.0002534]
[1724958918224,0.084423,59211.0,59185.0,0.445258]
[1724958918399,0.37,59196.0,59185.0,0.3608]
[1724958918699,0.3608,59193.0,59185.0,0.3608]
[1724958919101,0.0846984,59195.0,59191.0,0.3608]
[1724958919304,0.0846984,59195.0,59185.0,0.3608]
[1724958919305,0.3608,59193.0,59186.0,0.084458]
[1724958919508,0.084451,59191.0,59185.0,0.3608]
[1724958919710,0.3608,59193.0,59185.0,0.3608]
[1724958919917,0.0002534,59195.0,59190.0,0.084452]
[1724958920101,0.01430612,59195.0,59194.0,0.084446]
[1724958920302,0.0002534,59195.0,59194.0,0.084446]
[1724958920596,0.05020477,59195.0,59194.0,0.445246]
[1724958921506,0.0002534,59195.0,59194.0,0.445246]
[1724958921903,1e-08,59195.0,59194.0,1.552046]
[1724958922114,1e-08,59195.0,59194.0,1.852846]
[1724958923109,0.408614,59217.0,59195.0,0.5068]
[1724958923311,0.37,59215.0,59206.0,0.3608]
[1724958923723,0.084421,59212.0,59206.0,0.3608]
[1724958924017,0.084421,59212.0,59209.0,0.084424]
[1724958925215,0.37,59210.0,59203.0,0.0002534]
[1724958925514,0.084432,59204.0,59203.0,0.0002534]
[1724958926721,0.454432,59204.0,59203.0,0.0002534]
[1724958926912,0.52038517,59204.0,59203.0,0.0002534]
[1724958927815,0.52038517,59204.0,59203.0,1e-08]
[1724958927816,1.71153717,59204.0,59203.0,1e-08]
[1724958928116,0.084441,59198.0,59189.0,0.084453]
[1724958928314,0.05183896,59203.0,59189.0,0.084453]
[1724958928523,0.37,59192.0,59188.0,0.3608]
[1724958928711,0.05184965,59191.0,59183.0,0.3608]
[1724958928914,0.37,59186.0,59183.0,0.3608]
[1724958929225,0.084461,59184.0,59179.0,0.0002534]
[1724958929428,0.05185444,59185.0,59183.0,0.084461]
[1724958929724,0.05185444,59187.0,59186.0,0.084458]
[1724958930020,0.0002534,59190.0,59189.0,0.084454]
[1724958930228,1e-08,59190.0,59189.0,0.445254]
[1724958931716,1e-08,59190.0,59189.0,0.952094]
[1724958932315,1e-08,59190.0,59189.0,0.445254]
[1724958933927,0.3092,59212.0,59189.0,1.922094]
[1724958934118,0.084427,59208.0,59204.0,0.084432]
[1724958934318,0.3608,59205.0,59195.0,0.3608]
[1724958934820,0.3608,59205.0,59201.0,0.084436]
[1724958935019,0.3608,59205.0,59195.0,0.3608]
[1724958935020,0.3608,59205.0,59203.0,0.084433]
[1724958935817,0.3608,59205.0,59197.0,0.0002534]
[1724958936025,0.3608,59205.0,59204.0,0.084432]
[1724958936523,0.3608,59205.0,59197.0,0.0002534]
[1724958936723,0.3749999,59205.0,59202.0,0.084435]
[1724958936915,0.3749999,59205.0,59203.0,0.084433]
[1724958937125,0.3749999,59205.0,59204.0,0.084432]
[1724958938014,0.3749999,59205.0,59199.0,0.084438]
[1724958938235,0.3749999,59205.0,59197.0,0.0002534]
[1724958938236,0.445239,59200.0,59197.0,0.0002534]
[1724958938421,0.445239,59200.0,59198.0,0.084441]
[1724958938422,0.3608,59200.0,59198.0,0.084441]
[1724958938725,0.37,59203.0,59197.0,0.0002534]
[1724958938726,0.20727176,59199.0,59197.0,0.0002534]
[1724958939114,0.454441,59198.0,59197.0,0.0002534]
[1724958939516,1.01304905,59198.0,59197.0,0.0002534]
[1724958939919,1.06301378,59198.0,59197.0,0.0002534]
[1724958940116,1.14744967,59198.0,59197.0,1e-08]
[1724958940315,1.74744967,59198.0,59197.0,1e-08]
[1724958940516,1.80798757,59198.0,59197.0,1e-08]
[1724958940922,0.06593617,59198.0,59197.0,0.08444201]
[1724958941130,0.01408812,59198.0,59197.0,0.08444201]
[1724958941336,0.20727176,59199.0,59198.0,0.084441]
[1724958942229,0.0140319,59199.0,59198.0,0.084441]
[1724958942431,0.05184805,59204.0,59197.0,0.36080001]
[1724958942828,0.05184805,59204.0,59202.0,0.084435]
[1724958943135,0.05184805,59204.0,59202.0,0.3608]
[1724958943323,0.01414651,59204.0,59203.0,0.084434]
[1724958943519,0.0002534,59209.0,59208.0,0.084426]
[1724958944032,0.37407939,59222.0,59209.0,0.50668]
[1724958944033,0.3135,59222.0,59209.0,0.50668]
[1724958944329,0.3135,59222.0,59216.0,0.084415]
[1724958944330,0.05182572,59221.0,59216.0,0.084415]
[1724958944528,0.05182572,59221.0,59213.0,0.3608]
[1724958944725,0.3608,59219.0,59212.0,0.08442]
[1724958944935,0.05182572,59218.0,59212.0,0.08442]
[1724958945135,0.084415,59216.0,59213.0,0.445219]
[1724958946032,0.05182572,59218.0,59213.0,0.445219]
[1724958946033,0.05182572,59218.0,59215.0,0.084416]
[1724958946234,0.13623872,59218.0,59215.0,0.084416]
[1724958946619,0.0002534,59221.0,59217.0,0.084414]
[1724958947032,0.0002534,59221.0,59218.0,0.084412]
[1724958947228,0.0002534,59221.0,59220.0,0.084409]
[1724958947928,0.0002534,59221.0,59220.0,0.445209]
[1724958948139,0.3608,59236.0,59221.0,0.50656]
[1724958948428,0.3608,59236.0,59235.0,0.084388]
[1724958949128,0.37507614,59236.0,59235.0,0.084388]
[1724958949436,0.37507614,59236.0,59230.0,0.0002534]
[1724958950025,0.45946314,59236.0,59230.0,0.0002534]
[1724958951219,0.37507614,59236.0,59231.0,0.084393]
[1724958951418,0.08439,59234.0,59230.0,0.0002534]
[1724958951631,0.084394,59231.0,59230.0,0.0002534]
[1724958951828,0.084394,59231.0,59230.0,1e-08]
[1724958952432,0.3608,59235.0,59230.0,1e-08]
[1724958952627,0.3608,59235.0,59230.0,0.08439401]
[1724958952823,0.3608,59235.0,59230.0,1e-08]
[1724958953022,0.01427614,59236.0,59235.0,0.084388]
[1724958953223,0.3608,59240.0,59235.0,0.084388]
[1724958953427,0.445182,59240.0,59235.0,0.084388]
[1724958953635,0.3608,59240.0,59235.0,0.084388]
[1724958953835,0.3608,59240.0,59232.0,0.3608]
[1724958953836,0.084385,59237.0,59232.0,0.3608]
[1724958954235,0.37519471,59240.0,59236.0,0.084387]
[1724958954729,0.45957671,59240.0,59236.0,0.084387]
[1724958954928,0.37519471,59240.0,59232.0,0.3608]
[1724958955137,0.37519471,59240.0,59236.0,0.084386]
[1724958955332,0.45957671,59240.0,59236.0,0.084386]
[1724958955537,0.45957671,59240.0,59237.0,0.084385]
[1724958956037,0.37519471,59240.0,59232.0,0.3608]
[1724958956236,0.37519471,59240.0,59238.0,0.084383]
[1724958956541,0.084382,59239.0,59234.0,0.084389]
[1724958957239,0.084382,59239.0,59236.0,0.084386]
[1724958957440,0.084382,59239.0,59237.0,0.084385]
[1724958957738,0.084382,59239.0,59233.0,0.084389]
[1724958958239,0.084384,59238.0,59234.0,0.084388]
[1724958958631,0.084384,59238.0,59236.0,0.084386]
[1724958959934,0.084388,59236.0,59232.0,0.445192]
[1724958960130,0.084394,59231.0,59230.0,1e-08]
[1724958960727,0.3608,59234.0,59231.0,0.084393]
[1724958960928,0.3608,59234.0,59233.0,0.084391]
[1724958961133,0.37519471,59240.0,59230.0,1e-08]
[1724958961328,0.01439471,59240.0,59231.0,0.3608]
[1724958961533,0.0846334,59241.0,59231.0,0.3608]
[1724958961741,0.0846334,59241.0,59230.0,1e-08]
[1724958961742,0.0002534,59241.0,59240.0,0.084381]
[1724958962039,1e-08,59241.0,59240.0,0.084381]
[1724958962236,0.3608,59253.0,59240.0,0.084381]
[1724958962237,0.3608,59253.0,59250.0,0.084366]
[1724958962542,0.084358,59256.0,59250.0,0.3608]
[1724958962732,0.01425147,59256.0,59250.0,0.3608]
[1724958962933,0.3242,59261.0,59257.0,0.084357]
[1724958963133,0.3242,59261.0,59251.0,0.36]
[1724958963134,0.3242,59261.0,59256.0,0.3608]
[1724958963437,0.3242,59261.0,59257.0,0.084355]
[1724958963638,0.408551,59261.0,59257.0,0.084355]
[1724958964331,0.42265683,59261.0,59257.0,0.084355]
[1724958964532,0.084353,59260.0,59256.0,0.3608]
[1724958965447,0.33830583,59261.0,59260.0,0.084352]
[1724958965839,0.00025318,59265.0,59264.0,0.084347]
[1724958966343,0.37484652,59265.0,59250.0,0.3608]
[1724958966548,0.3195,59264.0,59252.0,0.084364]
[1724958966736,0.084352,59260.0,59250.0,0.3608]
[1724958966933,0.084352,59260.0,59255.0,0.3608]
[1724958967534,0.3195,59264.0,59255.0,0.3608]
[1724958967734,0.084348,59263.0,59256.0,0.084357]
[1724958968149,0.00025318,59265.0,59262.0,0.3608]
[1724958968847,0.00025318,59265.0,59264.0,0.084347]
[1724958969249,0.084348,59263.0,59262.0,0.3608]
[1724958969441,0.00025318,59265.0,59262.0,0.3608]
[1724958969644,0.00025318,59265.0,59262.0,0.445149]
[1724958970565,0.00025318,59265.0,59262.0,0.3608]
[1724958970765,0.08459818,59265.0,59262.0,0.3608]
[1724958971346,0.084348,59263.0,59262.0,0.3608]
[1724958971848,0.084356,59258.0,59255.0,0.3608]
[1724958972454,0.3016,59262.0,59255.0,0.3608]
[1724958972653,0.3016,59262.0,59256.0,0.084357]
[1724958972844,0.445149,59263.0,59256.0,0.084357]
[1724958973160,0.3608,59263.0,59255.0,0.7208]
[1724958973657,0.3608,59263.0,59259.0,0.084353]
[1724958973957,0.3608,59263.0,59260.0,0.084352]
[1724958974148,0.084347,59264.0,59260.0,0.084352]
[1724958974950,0.084347,59264.0,59260.0,0.445152]
[1724958975150,0.09697509,59264.0,59260.0,0.445152]
[1724958975551,0.09697509,59264.0,59261.0,0.084351]
[1724958976155,0.01262809,59264.0,59263.0,0.084348]
[1724958976353,0.00025318,59265.0,59263.0,0.084348]
[1724958976559,0.00025318,59265.0,59264.0,0.084347]
[1724958977164,0.01239614,59265.0,59264.0,0.084347]
[1724958977951,0.01239614,59265.0,59260.0,0.3608]
[1724958978147,0.084355,59258.0,59255.0,0.3608]
[1724958978349,0.084347,59264.0,59255.0,0.3608]
[1724958978849,0.084347,59264.0,59243.0,0.36]
[1724958978850,0.084361,59254.0,59253.0,1e-08]
[1724958979152,0.084381,59240.0,59235.0,0.084387]
[1724958979461,0.084369,59249.0,59231.0,0.084393]
[1724958979462,0.084385,59237.0,59231.0,0.084393]
[1724958979763,0.3608,59241.0,59233.0,0.084391]
[1724958979954,0.3608,59241.0,59230.0,0.2993]
[1724958980254,0.44518,59241.0,59234.0,0.084388]
[1724958980460,0.45746608,59241.0,59234.0,0.084388]
[1724958980757,0.09666608,59241.0,59234.0,0.084388]
[1724958981254,0.09666608,59241.0,59235.0,0.084387]
[1724958981451,0.01228608,59241.0,59237.0,0.3608]
[1724958981651,0.00025318,59243.0,59240.0,0.084381]
[1724958981946,0.00025318,59243.0,59231.0,0.00025318]
[1724958981947,0.00025318,59243.0,59242.0,0.3608]
[1724958982151,0.01275212,59243.0,59242.0,0.445178]
[1724958982458,1e-08,59243.0,59242.0,1.551578]
[1724958982662,1e-08,59243.0,59242.0,1.996756]
[1724958982863,0.3608,59265.0,59248.0,0.084369]
[1724958983055,0.3608,59265.0,59257.0,0.3608]
[1724958983247,0.37295598,59265.0,59264.0,0.084347]
[1724958983453,0.01215598,59265.0,59264.0,0.084347]
[1724958983750,0.084337,59271.0,59267.0,0.084342]
[1724958984256,0.99358,59273.0,59264.0,0.3608]
[1724958984257,0.67958,59273.0,59269.0,0.084338]
[1724958984457,0.084335,59272.0,59267.0,0.084342]
[1724958984657,0.69235738,59273.0,59264.0,0.3608]
[1724958984858,0.37345737,59273.0,59264.0,0.3608]
[1724958985260,0.37345737,59273.0,59272.0,0.084335]
[1724958985455,0.01265737,59273.0,59272.0,0.084335]
[1724958985654,0.00025318,59275.0,59274.0,0.084332]
[1724958986159,0.6182,59306.0,59293.0,0.084305]
[1724958986360,0.63079175,59306.0,59293.0,0.084305]
[1724958986550,0.63079175,59306.0,59294.0,0.445104]
[1724958986857,0.084293,59302.0,59294.0,0.3608]
[1724958987656,0.084305,59294.0,59292.0,0.00025295]
[1724958988163,0.00025295,59304.0,59292.0,0.00025295]
[1724958988164,0.3608,59301.0,59292.0,0.00025295]
[1724958988463,0.084296,59300.0,59294.0,0.3608]
[1724958990165,0.084299,59298.0,59294.0,0.3608]
[1724958990461,0.084329,59277.0,59261.0,0.00088]
[1724958990767,0.3608,59273.0,59261.0,0.3608]
[1724958991154,0.084321,59282.0,59252.0,0.5964]
[1724958991155,0.3608,59262.0,59252.0,0.59728]
[1724958991466,0.3608,59262.0,59251.0,0.84141013]
[1724958991467,0.3608,59262.0,59251.0,0.41166308]
[1724958991661,0.00025295,59263.0,59256.0,0.084358]
[1724958991860,0.00025295,59263.0,59257.0,0.084356]
[1724958992056,0.00025295,59263.0,59251.0,0.41166308]
[1724958992057,0.00025295,59263.0,59262.0,0.08435]
[1724958992566,0.00025295,59263.0,59262.0,1.55139]
[1724958992753,0.0123288,59265.0,59264.0,0.084347]
[1724958992950,0.3608,59276.0,59268.0,0.084341]
[1724958993561,0.3608,59276.0,59262.0,0.3608]
[1724958993562,0.3608,59276.0,59269.0,0.084339]
[1724958994670,0.3608,59276.0,59267.0,0.36105295]
[1724958994671,0.01261522,59276.0,59267.0,0.36105295]
[1724958994853,0.00025295,59278.0,59276.0,0.084328]
[1724958995454,0.3608,59277.0,59276.0,0.084328]
[1724958995661,0.00025295,59278.0,59276.0,0.084328]
[1724958995860,0.01257361,59278.0,59276.0,0.084328]
[1724958996167,0.3608,59277.0,59270.0,0.084337]
[1724958996359,0.3608,59277.0,59271.0,0.084337]
[1724958996964,0.00025295,59278.0,59274.0,0.3608]
[1724958997355,0.00025295,59278.0,59277.0,0.084328]
[1724958997557,0.3608,59295.0,59277.0,0.50608]
[1724958997757,0.084298,59298.0,59284.0,0.3608]
[1724958997962,0.3608,59303.0,59300.0,0.084295]
[1724958998161,0.3608,59303.0,59301.0,0.084293]
[1724958998555,0.3608,59303.0,59302.0,0.084293]
[1724958998867,0.00016601,59308.0,59307.0,0.084286]
[1724958999053,0.01267446,59308.0,59307.0,0.084286]
[1724958999258,0.6561,59317.0,59307.0,1.46664]
[1724958999460,0.3608,59324.0,59313.0,0.3608]
[1724958999667,0.3608,59324.0,59321.0,0.084265]
[1724958999967,0.3608,59324.0,59313.0,0.3608]
[1724959000167,0.3608,59324.0,59316.0,0.084272]
[1724959000469,0.01221278,59324.0,59318.0,0.084269]
[1724959000666,0.08426,59325.0,59319.0,0.3608]
[1724959001756,0.3608,59324.0,59314.0,0.00025295]
[1724959002558,0.084264,59322.0,59314.0,0.00025295]
[1724959003565,0.084269,59319.0,59314.0,0.00025295]
[1724959003767,0.08427,59318.0,59314.0,0.00025295]
[1724959003959,0.3608,59324.0,59314.0,0.00025295]
[1724959003960,0.445062,59324.0,59314.0,0.08452795]
[1724959004267,0.445062,59324.0,59314.0,0.00025295]
[1724959004461,0.084266,59321.0,59316.0,0.084272]
[1724959004659,0.3608,59324.0,59317.0,0.08427]
[1724959004856,0.3608,59324.0,59318.0,0.3608]
[1724959005061,0.3608,59324.0,59319.0,0.3608]
[1724959005554,0.3608,59324.0,59314.0,0.00025295]
[1724959005756,0.3608,59324.0,59319.0,0.3608]
[1724959005957,0.3608,59324.0,59323.0,0.084263]
[1724959006366,0.3608,59324.0,59323.0,1.189983]
[1724959007357,0.0125765,59329.0,59328.0,0.084256]
[1724959007570,0.3608,59330.0,59328.0,0.084256]
[1724959007965,0.445053,59330.0,59328.0,0.084256]
[1724959008282,0.37136028,59330.0,59328.0,0.084256]
[1724959008469,0.084258,59327.0,59325.0,0.3608]
[1724959008670,0.084247,59334.0,59325.0,0.3608]
[1724959008974,0.3608,59335.0,59325.0,0.3608]
[1724959008975,0.37159646,59335.0,59325.0,0.3608]
[1724959009176,0.37159646,59335.0,59330.0,0.445052]
[1724959009363,0.084248,59334.0,59330.0,0.445052]
[1724959010060,0.084248,59334.0,59331.0,0.084251]
[1724959010462,0.084248,59334.0,59332.0,0.08425]
[1724959010671,0.084248,59334.0,59330.0,0.3608]
[1724959010981,0.084248,59334.0,59333.0,0.084249]
[1724959011678,0.37159646,59335.0,59330.0,0.3608]
[1724959011679,0.37159646,59335.0,59334.0,0.084247]
[1724959012264,0.01079646,59335.0,59334.0,0.084247]
[1724959012469,0.3608,59340.0,59338.0,0.084241]
[1724959012660,0.3608,59340.0,59335.0,0.084245]
[1724959013165,0.3608,59340.0,59330.0,0.3608]
[1724959013469,0.01044484,59343.0,59342.0,0.084236]
[1724959013660,0.3608,59346.0,59345.0,0.084232]
[1724959014061,0.37148274,59346.0,59345.0,0.084232]
[1724959014570,0.37148274,59346.0,59340.0,0.00025295]
[1724959014768,0.084235,59343.0,59340.0,0.00025295]
[1724959014963,0.37148274,59346.0,59341.0,0.084237]
[1724959015165,0.084209,59362.0,59345.0,0.445032]
[1724959015459,0.3068,59363.0,59362.0,0.084207]
[1724959015670,0.3608,59365.0,59354.0,0.7808]
[1724959015671,1.68612,59364.0,59363.0,0.084206]
[1724959015877,1.69678368,59364.0,59363.0,0.084206]
[1724959017664,1.68612,59364.0,59363.0,0.084206]
[1724959017864,1.68612,59364.0,59363.0,0.589566]
[1724959018167,1.68612,59364.0,59363.0,0.084206]
[1724959018363,1.09987266,59364.0,59363.0,1.20009927]
[1724959018567,0.93773001,59364.0,59363.0,1.20009927]
[1724959019168,0.36652101,59364.0,59363.0,1.20009927]
[1724959019567,0.27922001,59364.0,59363.0,1.20009927]
[1724959019775,0.27922001,59364.0,59363.0,1.20855389]
[1724959020279,0.27922001,59364.0,59363.0,0.60855389]
[1724959020469,0.27922001,59364.0,59363.0,1.20855389]
[1724959021274,0.27922001,59364.0,59363.0,1.20009927]
[1724959021481,0.27922001,59364.0,59363.0,1.20868282]
[1724959021675,0.27922001,59364.0,59363.0,1.20009927]
[1724959021875,0.27922001,59364.0,59363.0,0.09473927]
[1724959022184,0.27922001,59364.0,59357.0,0.00025274]
[1724959022769,0.28993689,59364.0,59357.0,0.00025274]
[1724959022982,0.084209,59361.0,59357.0,0.00025274]
[1724959023192,0.084209,59361.0,59357.0,0.08446674]
[1724959023374,0.44501,59360.0,59357.0,0.08446674]
[1724959023676,0.084213,59358.0,59357.0,0.00025274]
[1724959023881,0.3608,59360.0,59357.0,0.00025274]
[1724959024083,0.3608,59360.0,59359.0,0.084212]
[1724959024681,0.3608,59360.0,59346.0,0.3608]
[1724959025385,0.44501,59360.0,59355.0,0.084216]
[1724959025583,0.3608,59360.0,59356.0,0.084216]
[1724959025890,0.3608,59360.0,59351.0,0.3608]
[1724959025891,0.3608,59360.0,59359.0,0.084212]
[1724959026279,0.3608,59360.0,59352.0,0.00025274]
[1724959026591,0.3608,59360.0,59359.0,0.084212]
[1724959027581,0.00025201,59363.0,59359.0,0.8662]
[1724959027782,0.00025201,59363.0,59362.0,0.084207]
[1724959029396,0.00025201,59363.0,59362.0,0.13481713]
[1724959029692,0.00025201,59363.0,59362.0,1.34125417]
[1724959029887,0.00025201,59363.0,59362.0,1.273774]
[1724959030088,0.27922001,59364.0,59363.0,0.168412]
[1724959030284,0.27922001,59364.0,59363.0,0.673772]
[1724959030487,0.27922001,59364.0,59363.0,1.189566]
[1724959031307,0.27922001,59364.0,59363.0,1.25631201]
[1724959031512,0.22023871,59364.0,59363.0,1.31789246]
[1724959031711,7.4e-07,59364.0,59363.0,1.5582732]
[1724959032212,7.4e-07,59364.0,59363.0,1.6424792]
[1724959032921,0.2918,59399.0,59398.0,0.084156]
[1724959033100,0.3608,59407.0,59404.0,0.084148]
[1724959033302,0.3608,59407.0,59403.0,0.06672315]
[1724959033508,0.3608,59407.0,59406.0,0.15086815]
[1724959033806,0.2918,59411.0,59404.0,0.08340954]
[1724959033807,0.01064063,59408.0,59404.0,0.08340954]
[1724959034006,0.2918,59411.0,59410.0,0.084139]
[1724959034209,0.3149,59413.0,59411.0,0.084137]
[1724959034907,0.86576,59412.0,59409.0,0.04995309]
[1724959035115,0.084156,59398.0,59397.0,0.08340954]
[1724959035315,0.3608,59410.0,59395.0,0.08340954]
[1724959035316,0.3608,59400.0,59395.0,0.08340954]